bitfinex/quotes_BTCUSD_20251231
["timestamp","ask_amount","ask_price","bid_price","bid_amount"]
[1767211337137,0.000118,87579.0,87561.0,0.09986196]
[1767211337138,0.01148,87578.0,87561.0,0.09986196]
[1767211337338,0.07478427,87578.0,87561.0,0.09986196]
[1767211337479,0.07478427,87578.0,87560.0,0.41505465]
[1767211337686,0.07478427,87578.0,87557.0,0.09996795]
[1767211338041,0.07478427,87578.0,87560.0,0.41505465]
[1767211338416,0.01148,87578.0,87560.0,0.41505465]
[1767211338640,0.06352842,87577.0,87560.0,0.41505465]
[1767211339403,0.06352842,87577.0,87561.0,0.10217106]
[1767211339619,0.01148,87578.0,87567.0,0.41505465]
[1767211340478,0.000118,87579.0,87567.0,0.41505465]
[1767211340759,0.01148,87578.0,87569.0,0.41505465]
[1767211341922,0.01148,87578.0,87566.0,0.09855308]
[1767211342301,0.01148,87578.0,87568.0,0.41505465]
[1767211343954,0.01148,87578.0,87566.0,0.09855308]
[1767211344358,0.01148,87578.0,87568.0,0.51360773]
[1767211344359,0.011035,87578.0,87568.0,0.51360773]
[1767211344780,0.000118,87579.0,87569.0,0.09855308]
[1767211344947,0.01148,87578.0,87569.0,0.09855308]
[1767211345144,0.000118,87579.0,87569.0,0.09855308]
[1767211345348,0.01148,87578.0,87569.0,0.09855308]
[1767211346480,0.000118,87579.0,87569.0,0.09855308]
[1767211346710,0.0001666,87589.0,87570.0,0.09855308]
[1767211347051,0.01148,87588.0,87580.0,0.09855308]
[1767211347690,0.0001666,87589.0,87580.0,0.09855308]
[1767211348095,0.0001666,87589.0,87580.0,0.14556405]
[1767211348260,0.01148,87588.0,87580.0,0.04701097]
[1767211348460,0.0001666,87589.0,87581.0,0.09855308]
[1767211348659,0.01148,87588.0,87581.0,0.09855308]
[1767211350505,0.01148,87588.0,87578.0,0.41505465]
[1767211350506,0.0001666,87599.0,87579.0,0.09855308]
[1767211350696,0.01148,87596.0,87589.0,0.09855308]
[1767211351742,0.01148,87596.0,87581.0,0.04115713]
[1767211351743,0.0001666,87599.0,87582.0,0.09855308]
[1767211352061,0.00052113,87599.0,87589.0,0.4150303]
[1767211352265,0.00052113,87599.0,87590.0,0.09855308]
[1767211352424,0.0001666,87609.0,87590.0,0.09855308]
[1767211352598,0.0001666,87609.0,87592.0,0.09855308]
[1767211352799,0.01158095,87609.0,87592.0,0.09855308]
[1767211352999,0.06865288,87609.0,87592.0,0.09855308]
[1767211353309,0.01141461,87607.0,87592.0,0.09855308]
[1767211353515,0.01141448,87608.0,87592.0,0.09855308]
[1767211353719,0.0897772,87606.0,87592.0,0.09800408]
[1767211353923,0.0899473,87606.0,87592.0,0.09800408]
[1767211356108,0.0001701,87606.0,87592.0,0.09800408]
[1767211361431,0.01148,87605.0,87592.0,0.09800408]
[1767211362082,0.0116501,87605.0,87592.0,0.09800408]
[1767211362440,0.0116501,87605.0,87593.0,0.09855308]
[1767211363673,0.0001701,87605.0,87593.0,0.09855308]
[1767211363873,0.01148,87609.0,87600.0,0.09855308]
[1767211365752,0.0002481,87614.0,87600.0,0.09855308]
[1767211365952,0.01148,87608.0,87600.0,0.09855308]
[1767211366395,0.01148,87608.0,87600.0,0.10840839]
[1767211366989,0.0002481,87614.0,87600.0,0.09855308]
[1767211367197,0.01148,87613.0,87600.0,0.09855308]
[1767211367591,0.0002481,87614.0,87600.0,0.09855308]
[1767211367592,0.01148,87612.0,87600.0,0.09855308]
[1767211371830,0.00017,87600.0,87594.0,0.10017943]
[1767211371990,0.4150303,87610.0,87596.0,0.10017943]
[1767211372684,0.09177214,87613.0,87596.0,0.10017943]
[1767211372877,0.4150303,87610.0,87596.0,0.10017943]
[1767211374214,0.01148,87609.0,87596.0,0.10017943]
[1767211374416,0.01148,87609.0,87598.0,0.10017943]
[1767211375059,0.01148,87610.0,87598.0,0.10017943]
[1767211375822,0.0002481,87614.0,87598.0,0.10017943]
[1767211376422,0.0002481,87614.0,87599.0,0.10017943]
[1767211377343,0.01148,87613.0,87599.0,0.03076822]
[1767211377527,0.01148,87613.0,87600.0,0.11024456]
[1767211379462,0.01148,87613.0,87600.0,0.14101278]
[1767211380465,0.4150303,87610.0,87601.0,0.03076822]
[1767211380707,0.4150303,87610.0,87600.0,0.13077765]
[1767211381458,0.4150303,87610.0,87601.0,0.03059697]
[1767211381705,0.4150303,87610.0,87601.0,0.03004697]
[1767211381918,0.08153972,87598.0,87588.0,0.04114136]
[1767211382076,0.08153972,87598.0,87571.0,0.10267973]
[1767211382077,0.04004383,87596.0,87574.0,0.10017943]
[1767211382276,0.4150303,87592.0,87574.0,0.10017943]
[1767211383471,0.04004383,87596.0,87574.0,0.10017943]
[1767211383686,0.4150303,87590.0,87574.0,0.10017943]
[1767211383924,0.04004383,87596.0,87590.0,0.000549]
[1767211384286,0.04004383,87596.0,87581.0,0.10017943]
[1767211385717,0.01148,87597.0,87581.0,0.10017943]
[1767211387947,0.4150303,87591.0,87581.0,0.10017943]
[1767211388113,0.4144813,87591.0,87581.0,0.10017943]
[1767211388339,0.4144813,87591.0,87583.0,0.10017943]
[1767211388710,0.01148,87597.0,87583.0,0.10017943]
[1767211388886,0.4150303,87593.0,87583.0,0.10017943]
[1767211390532,0.01148,87592.0,87583.0,0.10017943]
[1767211391449,0.00035453,87598.0,87575.0,0.0173393]
[1767211391450,0.00035453,87598.0,87592.0,0.00055]
[1767211391676,0.01148,87597.0,87593.0,0.10017943]
[1767211392282,0.00035453,87598.0,87593.0,0.10017943]
[1767211392545,0.01148,87597.0,87593.0,0.10017943]
[1767211392672,0.01048176,87596.0,87594.0,0.10017943]
[1767211392875,0.04572,87610.0,87593.0,0.01001794]
[1767211392876,0.01148,87600.0,87597.0,0.10017943]
[1767211393611,0.4150303,87603.0,87597.0,0.10017943]
[1767211393791,0.4265103,87607.0,87597.0,0.10017943]
[1767211394683,0.01148,87607.0,87597.0,0.10017943]
[1767211394883,0.4265103,87607.0,87597.0,0.10017943]
[1767211395703,0.4150303,87610.0,87597.0,0.10017943]
[1767211395907,0.01148,87606.0,87597.0,0.10017943]
[1767211398771,0.01148,87606.0,87588.0,0.10017943]
[1767211398905,0.01148,87606.0,87588.0,0.10053396]
[1767211410434,2.00235,87600.0,87588.0,0.10053396]
[1767211410637,2.00235,87600.0,87587.0,0.01148]
[1767211410638,0.00019447,87588.0,87587.0,0.01148]
[1767211410867,0.00019447,87588.0,87587.0,0.12816152]
[1767211411083,0.05451015,87599.0,87587.0,0.12816152]
[1767211411901,2.41638206,87600.0,87587.0,0.12816152]
[1767211412118,2.41638206,87600.0,87587.0,0.0173599]
[1767211412325,0.05462021,87599.0,87587.0,0.00010638]
[1767211412531,0.01148,87598.0,87587.0,0.00010638]
[1767211412734,0.41514362,87597.0,87587.0,0.00010638]
[1767211413616,0.41514362,87597.0,87586.0,0.09925673]
[1767211413815,0.41523264,87597.0,87586.0,0.09925673]
[1767211414575,0.41523264,87597.0,87586.0,0.09936803]
[1767211417709,0.01141669,87591.0,87579.0,0.06173357]
[1767211417906,0.83028724,87589.0,87576.0,0.0001575]
[1767211418082,0.83028724,87586.0,87576.0,0.0001575]
[1767211418313,7.838e-05,87584.0,87576.0,0.0001575]
[1767211419467,0.41514362,87586.0,87576.0,0.09947912]
[1767211420243,0.41514362,87586.0,87576.0,0.0001575]
[1767211420448,0.83028724,87586.0,87576.0,0.0001575]
[1767211422455,0.01148,87588.0,87576.0,0.09947912]
[1767211422662,0.41514362,87586.0,87576.0,0.09947912]
[1767211427248,0.01148,87585.0,87576.0,0.09947912]
[1767211427795,0.01148,87585.0,87576.0,0.0001575]
[1767211428338,0.01148,87584.0,87576.0,0.0001575]
[1767211430708,0.01148,87584.0,87577.0,0.10471928]
[1767211430927,0.010931,87584.0,87577.0,0.10471928]
[1767211431136,0.41514362,87587.0,87577.0,0.10471928]
[1767211431415,0.01790457,87592.0,87577.0,0.10471928]
[1767211431416,0.41514362,87590.0,87577.0,0.11520696]
[1767211431564,0.01148,87586.0,87577.0,0.11520696]
[1767211432167,0.01148,87585.0,87577.0,0.11520696]
[1767211432379,0.01148,87585.0,87578.0,0.10471928]
[1767211432380,0.01093,87585.0,87578.0,0.10471928]
[1767211434286,0.41514362,87590.0,87578.0,0.10471928]
[1767211434415,0.01148,87589.0,87580.0,0.10471928]
[1767211435049,0.41514362,87590.0,87580.0,0.10471928]
[1767211435228,0.01148,87589.0,87580.0,0.10471928]
[1767211439030,0.01148,87588.0,87580.0,0.10471928]
[1767211439987,0.00061106,87596.0,87580.0,0.10471928]
[1767211440188,0.00061106,87596.0,87582.0,0.10471928]
[1767211441615,0.00061106,87596.0,87576.0,0.11635678]
[1767211441950,0.41514362,87590.0,87576.0,0.11635678]
[1767211442298,0.41514362,87586.0,87576.0,0.11635678]
[1767211442852,0.41514362,87586.0,87576.0,0.10487678]
[1767211443435,0.0003925,87576.0,87569.0,0.01148]
[1767211443636,0.0003925,87576.0,87570.0,0.00733711]
[1767211443862,0.0003925,87576.0,87570.0,0.11205639]
[1767211444080,0.41514362,87580.0,87570.0,0.11205639]
[1767211446653,0.83028724,87580.0,87570.0,0.11205639]
[1767211446856,0.84176724,87580.0,87567.0,0.0001575]
[1767211447065,0.41514362,87577.0,87567.0,0.0001575]
[1767211448522,0.02545609,87576.0,87567.0,5e-07]
[1767211455714,0.41514362,87577.0,87567.0,5e-07]
[1767211456795,0.42662362,87580.0,87567.0,0.10471978]
[1767211456796,0.01148,87580.0,87567.0,0.10471978]
[1767211456946,0.42662362,87580.0,87577.0,0.000313]
[1767211457143,0.02604089,87585.0,87567.0,0.10471978]
[1767211457366,0.01148,87584.0,87567.0,0.10471978]
[1767211457568,0.01790591,87586.0,87567.0,0.10471978]
[1767211457771,0.02611027,87595.0,87567.0,0.10471978]
[1767211457772,0.01148,87585.0,87567.0,5e-07]
[1767211457971,0.01148,87587.0,87567.0,5e-07]
[1767211458224,0.01148,87587.0,87571.0,0.10471928]
[1767211458554,0.01148,87588.0,87587.0,0.000313]
[1767211458822,0.01148,87588.0,87587.0,0.10503228]
[1767211459047,0.01148,87588.0,87582.0,0.10471928]
[1767211459686,0.011167,87588.0,87582.0,0.10471928]
[1767211460280,0.01148,87588.0,87582.0,0.10471928]
[1767211460658,0.01148,87588.0,87583.0,0.01047193]
[1767211461031,0.01148,87588.0,87582.0,0.10471928]
[1767211461439,0.000157,87590.0,87582.0,0.10471928]
[1767211461666,0.01148,87589.0,87582.0,0.10471928]
[1767211463771,0.01148,87588.0,87582.0,0.10471928]
[1767211464561,0.000157,87590.0,87582.0,0.10471928]
[1767211464762,0.01148,87588.0,87582.0,0.10471928]
[1767211465616,0.000549,87582.0,87573.0,0.10252835]
[1767211465841,0.000549,87582.0,87575.0,0.10252835]
[1767211466233,0.41514362,87583.0,87575.0,0.10252835]
[1767211466438,0.41514362,87585.0,87575.0,0.10252835]
[1767211466764,0.01148,87588.0,87575.0,0.10252835]
[1767211466911,0.41530062,87590.0,87575.0,0.10252835]
[1767211466912,0.000157,87590.0,87575.0,0.10252835]
[1767211467116,0.01148,87589.0,87577.0,0.10252835]
[1767211468608,0.01148,87588.0,87577.0,0.10252835]
[1767211473053,0.41514362,87587.0,87577.0,0.10252835]
[1767211473261,0.000549,87577.0,87574.0,0.01025284]
[1767211473481,0.000549,87577.0,87574.0,0.11278119]
[1767211473683,0.000549,87577.0,87575.0,0.01127812]
[1767211473879,0.41514362,87584.0,87575.0,0.01127812]
[1767211474523,0.41531923,87585.0,87575.0,0.01127812]
[1767211474682,0.001099,87575.0,87564.0,0.10252835]
[1767211474882,0.41531923,87574.0,87564.0,0.10252835]
[1767211476679,0.01148,87577.0,87564.0,0.10252835]
[1767211477565,0.01148,87577.0,87564.0,0.10235703]
[1767211479469,0.41531923,87574.0,87564.0,0.10235703]
[1767211479665,0.01148,87577.0,87564.0,0.10235703]
[1767211482697,0.41531923,87574.0,87564.0,0.10235703]
[1767211483339,0.000549,87564.0,87557.0,0.0002271]
[1767211483529,0.012029,87564.0,87557.0,0.0002271]
[1767211483739,0.01148,87564.0,87557.0,0.0002271]
[1767211483991,0.01148,87564.0,87556.0,0.09558953]
[1767211484129,0.01148,87564.0,87549.0,0.10252835]
[1767211484317,0.000549,87556.0,87549.0,0.10252835]
[1767211484513,0.000549,87556.0,87549.0,0.10263434]
[1767211484951,0.41531923,87560.0,87550.0,0.10252835]
[1767211485940,0.01148,87564.0,87550.0,0.10252835]
[1767211489387,0.01148,87565.0,87564.0,0.000549]
[1767211489589,0.01148,87565.0,87560.0,0.10252835]
[1767211490847,0.04760895,87576.0,87560.0,0.10252835]
[1767211491051,0.01148,87575.0,87560.0,0.10252835]
[1767211491212,0.0001522,87580.0,87560.0,0.10252835]
[1767211491414,0.01148,87579.0,87561.0,0.10969321]
[1767211492520,0.01148,87578.0,87561.0,0.10969321]
[1767211492914,0.01148,87577.0,87561.0,0.10969321]
[1767211494456,0.01148,87576.0,87561.0,0.12181053]
[1767211494658,0.01148,87576.0,87561.0,0.10969321]
[1767211494659,0.01141878,87575.0,87561.0,0.10969321]
[1767211494882,0.01141878,87575.0,87555.0,0.10969321]
[1767211494883,0.04797662,87574.0,87555.0,0.10969321]
[1767211495082,0.41531923,87570.0,87555.0,0.10969321]
[1767211496449,0.05951318,87569.0,87555.0,0.10969321]
[1767211496654,0.05951318,87569.0,87555.0,0.12800971]
[1767211496898,0.01141995,87566.0,87555.0,0.12800971]
[1767211497062,0.01142008,87565.0,87555.0,0.12800971]
[1767211497274,0.06851908,87567.0,87555.0,0.12800971]
[1767211497534,0.01141982,87567.0,87555.0,0.12800971]
[1767211497762,0.06852091,87565.0,87555.0,0.10969321]
[1767211498039,0.06852091,87565.0,87548.0,0.0001522]
[1767211498040,0.01142178,87552.0,87548.0,1e-08]
[1767211498267,0.01142152,87554.0,87548.0,1e-08]
[1767211498406,0.01148,87555.0,87548.0,1e-08]
[1767211499047,0.01141956,87569.0,87549.0,0.10969321]
[1767211499250,0.01148,87568.0,87549.0,0.10969321]
[1767211499626,0.01148,87567.0,87549.0,0.10969321]
[1767211500319,0.111061,87566.0,87549.0,0.10969321]
[1767211501526,0.0001063,87569.0,87549.0,0.10969321]
[1767211501750,0.01148,87568.0,87549.0,0.10969321]
[1767211502562,0.122541,87568.0,87549.0,0.10969321]
[1767211503492,0.0835515,87568.0,87549.0,0.10969321]
[1767211503700,0.0001522,87580.0,87551.0,0.10969321]
[1767211503834,0.01148,87579.0,87553.0,0.10969321]
[1767211504481,0.01148,87578.0,87553.0,0.10969321]
[1767211504742,0.01148,87578.0,87555.0,0.10969321]
[1767211504943,0.42688956,87580.0,87555.0,0.10969321]
[1767211505140,0.41531923,87570.0,87554.0,0.05365988]
[1767211505346,0.41531923,87570.0,87552.0,0.01148]
[1767211505347,0.41531923,87570.0,87553.0,0.10969321]
[1767211505777,0.122541,87572.0,87553.0,0.10969321]
[1767211505977,0.41531923,87570.0,87553.0,0.10969321]
[1767211506219,0.111061,87578.0,87553.0,0.10969321]
[1767211506420,0.01148,87575.0,87555.0,0.10969321]
[1767211506808,0.010931,87575.0,87560.0,0.41531923]
[1767211507016,0.01148,87574.0,87561.0,0.10969321]
[1767211507431,0.01163219,87574.0,87561.0,0.10969321]
[1767211508419,0.08641172,87585.0,87561.0,0.10969321]
[1767211508420,0.01148,87581.0,87561.0,0.10969321]
[1767211508637,0.01148,87581.0,87563.0,0.10969321]
[1767211508812,0.01161194,87586.0,87563.0,0.10969321]
[1767211509039,0.01148,87581.0,87563.0,0.10969321]
[1767211511413,0.0001946,87586.0,87571.0,0.10969321]
[1767211511641,0.01148,87582.0,87573.0,0.10969321]
[1767211511783,0.01141813,87580.0,87567.0,0.01148]
[1767211512009,0.000549,87573.0,87567.0,0.01148]
[1767211512166,0.000549,87573.0,87557.0,0.10969321]
[1767211512167,0.11161,87573.0,87557.0,0.10969321]
[1767211512366,0.111061,87573.0,87558.0,0.02863331]
[1767211512846,0.01148,87574.0,87559.0,0.10969321]
[1767211513533,0.41531923,87570.0,87559.0,0.10969321]
[1767211523803,0.000549,87559.0,87558.0,0.01715331]
[1767211523976,0.11056814,87564.0,87549.0,0.0001658]
[1767211524177,0.01148,87563.0,87551.0,0.11371333]
[1767211524380,0.05709904,87568.0,87551.0,0.11371333]
[1767211524381,0.41531923,87561.0,87551.0,0.11371333]
[1767211524654,0.01148,87563.0,87561.0,0.11415703]
[1767211524859,0.41531923,87570.0,87561.0,0.11415703]
[1767211525001,0.01148,87564.0,87561.0,0.11415703]
[1767211525182,0.01148,87564.0,87561.0,0.11360703]
[1767211526243,0.01148,87564.0,87552.0,0.11360703]
[1767211526401,0.4267397,87562.0,87551.0,0.0001063]
[1767211526603,0.01142087,87559.0,87551.0,0.0001063]
[1767211526825,0.59441044,87562.0,87551.0,0.0001063]
[1767211526826,0.01142074,87560.0,87551.0,0.0001063]
[1767211527028,0.06852448,87560.0,87551.0,0.0001063]
[1767211527229,0.011421,87558.0,87551.0,0.0001063]
[1767211527437,0.01142139,87555.0,87545.0,0.0002]
[1767211527597,0.11056814,87552.0,87545.0,0.0002]
[1767211528415,0.01148,87554.0,87545.0,0.0002]
[1767211529887,0.48384427,87560.0,87545.0,0.11380703]
[1767211529888,0.41531923,87560.0,87545.0,0.11380703]
[1767211530088,0.11056814,87569.0,87560.0,0.00055]
[1767211530241,0.01148,87568.0,87560.0,0.00055]
[1767211530462,0.11056814,87569.0,87560.0,0.00055]
[1767211530685,0.01148,87568.0,87560.0,0.00055]
[1767211530858,0.11056814,87569.0,87553.0,0.11360703]
[1767211531249,0.41531923,87570.0,87554.0,0.12496773]
[1767211531505,0.01148,87569.0,87554.0,0.12496773]
[1767211531739,0.01148,87568.0,87554.0,0.12496773]
[1767211534505,0.41541113,87570.0,87554.0,0.12496773]
[1767211534744,0.01790829,87573.0,87570.0,0.11415703]
[1767211535138,0.01148,87575.0,87570.0,0.11360703]
[1767211535919,0.01093,87575.0,87570.0,0.12496773]
[1767211536124,0.0001802,87576.0,87570.0,0.12496773]
[1767211536696,0.11056814,87575.0,87559.0,0.04110966]
[1767211536908,0.11056814,87575.0,87553.0,0.04110966]
[1767211536909,0.11056814,87568.0,87553.0,0.04110966]
[1767211537108,0.41541113,87563.0,87554.0,0.02279303]
[1767211537317,0.41541113,87563.0,87550.0,0.11360703]
[1767211537523,0.41541113,87563.0,87550.0,1e-08]
[1767211538110,0.41541113,87560.0,87550.0,1e-08]
[1767211539150,0.01142034,87563.0,87550.0,1e-08]
[1767211539355,0.01142139,87555.0,87551.0,0.11360703]
[1767211539537,0.03419828,87557.0,87551.0,0.01179983]
[1767211539746,0.03419828,87557.0,87550.0,1e-08]
[1767211539747,0.06852757,87556.0,87550.0,1e-08]
[1767211540108,0.05710865,87553.0,87546.0,0.0041306]
[1767211540309,0.01142204,87550.0,87545.0,8.935e-05]
[1767211540546,0.06853282,87550.0,87545.0,8.935e-05]
[1767211540739,0.05711022,87550.0,87545.0,8.935e-05]
[1767211540870,0.01142217,87549.0,87545.0,8.935e-05]
[1767211541215,0.05711022,87550.0,87545.0,8.935e-05]
[1767211541417,0.06853385,87548.0,87545.0,8.935e-05]
[1767211541641,0.05711242,87547.0,87545.0,8.935e-05]
[1767211541842,0.05711218,87547.0,87545.0,8.935e-05]
[1767211542187,0.05711249,87547.0,87545.0,8.935e-05]
[1767211542583,0.05711283,87546.0,87545.0,8.935e-05]
[1767211542969,0.05711283,87546.0,87543.0,0.01148]
[1767211542970,0.05711413,87544.0,87543.0,0.01148]
[1767211543173,0.05711538,87543.0,87538.0,0.0001802]
[1767211543377,0.13335022,87543.0,87538.0,0.0001802]
[1767211543651,0.06863004,87544.0,87538.0,0.0001802]
[1767211544170,0.06853826,87543.0,87538.0,0.0001802]
[1767211544311,0.01142308,87542.0,87538.0,0.0001802]
[1767211544503,0.01142321,87541.0,87538.0,0.0001802]
[1767211544710,0.06853983,87541.0,87538.0,0.0001802]
[1767211544948,0.06853882,87542.0,87538.0,0.01275122]
[1767211545151,0.01142321,87541.0,87538.0,0.01275122]
[1767211545358,0.06853955,87541.0,87538.0,0.0001802]
[1767211545691,0.17910769,87541.0,87538.0,0.0001802]
[1767211545969,0.01142321,87541.0,87538.0,0.0001802]
[1767211546199,0.06853951,87541.0,87538.0,0.0001802]
[1767211546405,0.01142308,87542.0,87538.0,0.0001802]
[1767211546762,0.06853968,87541.0,87538.0,0.0001802]
[1767211546973,0.06853955,87541.0,87538.0,0.0001802]
[1767211547170,0.11056814,87539.0,87538.0,0.0001802]
[1767211547370,0.11056814,87539.0,87534.0,0.00024293]
[1767211547371,0.12199188,87537.0,87534.0,0.00024293]
[1767211547620,0.17911066,87537.0,87534.0,0.00024293]
[1767211547771,0.05711954,87536.0,87534.0,0.00024293]
[1767211548160,0.01142374,87537.0,87534.0,0.00024293]
[1767211548354,0.01142374,87537.0,87536.0,0.001099]
[1767211548602,0.06854244,87537.0,87536.0,0.001099]
[1767211548772,0.01142374,87537.0,87534.0,0.00024293]
[1767211548994,0.01142361,87538.0,87534.0,0.00024293]
[1767211549203,0.01142374,87537.0,87534.0,0.00024293]
[1767211549946,0.05712,87535.0,87534.0,0.00024293]
[1767211550463,0.06854377,87536.0,87532.0,0.0002]
[1767211550687,0.06854455,87535.0,87532.0,0.0002]
[1767211551334,0.06854455,87535.0,87504.0,0.0002]
[1767211551335,0.10769173,87524.0,87504.0,0.0002]
[1767211551536,0.01148,87523.0,87511.0,0.11719801]
[1767211551732,0.01148,87526.0,87511.0,0.11719801]
[1767211551934,0.06854427,87535.0,87511.0,0.11719801]
[1767211552173,0.01148,87534.0,87511.0,0.11719801]
[1767211552678,0.01148,87534.0,87510.0,0.63483714]
[1767211552679,0.0002015,87537.0,87524.0,0.62335714]
[1767211552877,0.10769173,87548.0,87525.0,0.11719801]
[1767211553048,0.10769173,87548.0,87531.0,0.11719801]
[1767211553256,0.164804,87547.0,87531.0,0.11719801]
[1767211553458,0.01148,87543.0,87531.0,0.11719801]
[1767211553661,0.01148,87543.0,87520.0,0.63483714]
[1767211553662,0.000549,87531.0,87521.0,0.11719801]
[1767211553865,0.11911481,87542.0,87521.0,0.11719801]
[1767211554049,0.10769173,87539.0,87521.0,0.11719801]
[1767211556144,0.01148,87543.0,87521.0,0.11719801]
[1767211556462,0.11917173,87543.0,87521.0,0.11719801]
[1767211557570,0.01148,87542.0,87521.0,0.11719801]
[1767211558943,9.309e-05,87544.0,87531.0,0.11719801]
[1767211562597,9.309e-05,87544.0,87506.0,0.0002015]
[1767211562598,0.10769173,87530.0,87512.0,0.11719801]
[1767211562800,0.41561568,87530.0,87513.0,0.03143179]
[1767211563073,0.10769173,87529.0,87513.0,0.03143179]
[1767211563629,0.10769173,87529.0,87513.0,0.1486298]
[1767211564894,0.10769173,87536.0,87519.0,0.41561568]
[1767211565020,0.10769173,87536.0,87514.0,0.11719801]
[1767211565021,0.10769173,87536.0,87520.0,0.01148]
[1767211565218,0.10769173,87536.0,87521.0,0.0128678]
[1767211567405,0.06854375,87536.0,87521.0,0.0128678]
[1767211567605,0.11911586,87534.0,87521.0,0.0128678]
[1767211567806,0.10769173,87534.0,87521.0,0.0128678]
[1767211569399,0.10769173,87534.0,87520.0,0.42709568]
[1767211569936,0.01148,87537.0,87520.0,0.54429369]
[1767211570135,0.01148,87539.0,87520.0,0.54429369]
[1767211570840,0.41561568,87540.0,87520.0,0.54429369]
[1767211571863,0.10769173,87532.0,87520.0,0.12867801]
[1767211572121,0.01142374,87537.0,87520.0,0.56332934]
[1767211572122,0.10769173,87537.0,87520.0,0.56332934]
[1767211572323,0.10769173,87535.0,87520.0,0.56332934]
[1767211572462,0.10769173,87535.0,87520.0,0.14771366]
[1767211572667,0.41561568,87530.0,87520.0,0.14771366]
[1767211572935,0.10769173,87535.0,87520.0,0.14771366]
[1767211573148,0.10769173,87535.0,87521.0,0.02093921]
[1767211574184,0.10769173,87535.0,87521.0,0.13813722]
[1767211574533,0.10769173,87535.0,87522.0,0.01148]
[1767211575496,0.0002015,87537.0,87522.0,0.12867801]
[1767211576049,0.01148,87538.0,87522.0,0.12867801]
[1767211576261,0.05640536,87538.0,87522.0,0.12867801]
[1767211576458,0.05640536,87538.0,87523.0,0.01148]
[1767211577635,0.01148,87539.0,87523.0,0.12867801]
[1767211579228,0.11917173,87539.0,87523.0,0.12867801]
[1767211580552,0.11917173,87539.0,87523.0,0.11719801]
[1767211580741,0.11917173,87539.0,87524.0,0.0128678]
[1767211582963,0.11925386,87538.0,87518.0,0.01148]
[1767211583172,0.11925386,87534.0,87518.0,0.01148]
[1767211583377,0.08491157,87534.0,87518.0,0.01148]
[1767211583578,0.62353266,87530.0,87518.0,0.01148]
[1767211584132,0.58919037,87530.0,87518.0,0.01148]
[1767211584453,0.08491157,87529.0,87518.0,0.02389814]
[1767211584661,0.05056928,87529.0,87518.0,0.01186914]
[1767211584940,0.05056928,87529.0,87515.0,0.01148]
[1767211585164,0.05056928,87529.0,87507.0,0.11270137]
[1767211585362,0.05056928,87529.0,87508.0,0.12418137]
[1767211585516,0.05056928,87529.0,87509.0,0.01148]
[1767211585717,0.05056928,87529.0,87510.0,0.01241814]
[1767211585918,0.05056928,87529.0,87510.0,0.12511951]
[1767211586750,0.00055,87510.0,87500.0,8.89355815]
[1767211586946,0.01148,87519.0,87502.0,0.01148]
[1767211587119,0.11925386,87518.0,87502.0,0.01148]
[1767211587906,0.11925386,87518.0,87502.0,0.12428771]
[1767211588153,0.01148,87519.0,87502.0,0.12428771]
[1767211590192,0.74278652,87530.0,87502.0,0.12428771]
[1767211590424,0.13073386,87529.0,87502.0,0.12428771]
[1767211590949,0.11925386,87527.0,87502.0,0.12428771]
[1767211592119,0.01148,87526.0,87502.0,0.12428771]
[1767211592313,0.01148,87526.0,87503.0,0.11270137]
[1767211592917,0.11925386,87525.0,87503.0,0.11270137]
[1767211594968,0.01142452,87531.0,87503.0,0.11270137]
[1767211595194,0.01148,87526.0,87503.0,0.11270137]
[1767211596991,0.11925386,87526.0,87503.0,0.11270137]
[1767211597154,0.13073386,87526.0,87503.0,0.11270137]
[1767211597471,0.06860593,87526.0,87503.0,0.11270137]
[1767211597673,0.0571214,87533.0,87503.0,0.11270137]
[1767211597889,0.11925386,87532.0,87503.0,0.11270137]
[1767211598210,0.01148,87531.0,87503.0,0.11270137]
[1767211598398,0.13073386,87531.0,87503.0,0.11270137]
[1767211598551,0.53504571,87530.0,87503.0,0.11270137]
[1767211598937,0.11925386,87529.0,87503.0,0.11270137]
[1767211599200,0.00018407,87522.0,87503.0,0.11270137]
[1767211601077,0.01791508,87534.0,87511.0,0.11270137]
[1767211601265,0.05712194,87533.0,87522.0,0.000184]
[1767211601466,0.05712194,87533.0,87512.0,0.01148]
[1767211601467,0.01142491,87528.0,87512.0,0.01148]
[1767211601702,0.41579185,87522.0,87512.0,0.01093]
[1767211601905,0.11925386,87521.0,87505.0,0.01148]
[1767211602106,0.11925386,87521.0,87505.0,0.12418137]
[1767211602310,0.11925386,87526.0,87505.0,0.12418137]
[1767211603227,0.11925386,87524.0,87505.0,0.12418137]
[1767211603382,0.11925386,87524.0,87505.0,0.11270137]
[1767211603982,0.11925386,87524.0,87507.0,0.11270137]
[1767211604213,0.01148,87523.0,87508.0,0.01242877]
[1767211605078,0.11925386,87533.0,87511.0,0.11270137]
[1767211605495,0.01148,87532.0,87511.0,0.11270137]
[1767211605707,0.01148,87531.0,87511.0,0.11270137]
[1767211605908,0.01148,87531.0,87513.0,0.11270137]
[1767211606119,0.01148,87531.0,87515.0,0.11270137]
[1767211607429,0.11925386,87533.0,87515.0,0.11270137]
[1767211607658,0.01148,87532.0,87515.0,0.11270137]
[1767211608044,0.11925386,87533.0,87515.0,0.12418137]
[1767211608290,0.01148,87531.0,87516.0,0.12513014]
[1767211609051,0.11925386,87537.0,87516.0,0.12513014]
[1767211609458,0.06854088,87540.0,87516.0,0.12513014]
[1767211609459,0.01148,87536.0,87516.0,0.12513014]
[1767211609993,0.12615133,87535.0,87516.0,0.12513014]
[1767211610196,0.01148,87536.0,87521.0,0.12876152]
[1767211610395,0.01148,87536.0,87523.0,0.12876152]
[1767211612316,0.12615133,87540.0,87523.0,0.12876152]
[1767211612518,0.01148,87538.0,87523.0,0.12876152]
[1767211612716,0.01142413,87534.0,87522.0,0.01148]
[1767211612921,0.01148,87538.0,87522.0,0.01148]
[1767211612922,0.000184,87523.0,87522.0,0.01148]
[1767211613129,0.22847182,87539.0,87522.0,0.01148]
[1767211613130,0.12615133,87541.0,87522.0,0.14024152]
[1767211613384,0.12615133,87541.0,87523.0,0.01402415]
[1767211613385,0.13757454,87541.0,87523.0,0.01402415]
[1767211613564,0.12615133,87539.0,87523.0,0.01402415]
[1767211615596,0.01148,87538.0,87523.0,0.01402415]
[1767211616405,0.01148,87537.0,87523.0,0.01402415]
[1767211616990,0.12615133,87539.0,87523.0,0.14278567]
[1767211617305,0.01148,87538.0,87525.0,0.12876152]
[1767211617505,0.13763133,87538.0,87524.0,0.01542657]
[1767211617706,0.12615133,87538.0,87524.0,0.01542657]
[1767211617908,0.01148,87537.0,87524.0,0.01542657]
[1767211618658,0.13763133,87537.0,87524.0,0.01542657]
[1767211618871,0.13763133,87537.0,87525.0,0.01556681]
[1767211619052,0.01148,87537.0,87525.0,0.01556681]
[1767211619227,0.12615133,87536.0,87522.0,0.01148]